fUST/lending_fUST_20250121
["ID","MTS","AMOUNT","RATE_DAILY","PERIOD"]
[349811294,1737443438376,-500.0,0.00021917,3]
[349811296,1737443438385,-861.23,0.00021917,3]
[349811298,1737443438395,-500.0,0.00021917,3]
[349811300,1737443438404,-500.0,0.00021917,3]
[349811302,1737443438414,-500.0,0.00021917,3]
[349811304,1737443438423,-500.0,0.00021917,3]
[349811306,1737443438432,-500.0,0.00021917,3]
[349811308,1737443438441,-91.62419293,0.00021917,3]
[349811311,1737443438457,-797.45686413,0.00021917,3]
[349811314,1737443438473,-859.76894294,0.00021917,3]
[349811316,1737443438482,-500.0,0.00021917,3]
[349811318,1737443438491,-500.0,0.00021917,3]
[349811320,1737443438500,-833.97,0.00021917,3]
[349811322,1737443438509,-500.0,0.00021917,3]
[349811324,1737443438518,-837.62,0.00021917,3]
[349811326,1737443438527,-500.0,0.00021917,3]
[349811328,1737443438536,-577.17,0.00021917,3]
[349811330,1737443438547,-624.33,0.00021917,3]
[349811332,1737443438556,-500.0,0.00021917,3]
[349811333,1737443438565,-500.0,0.00021917,3]
[349811334,1737443438574,-500.0,0.00021917,3]
[349811335,1737443438583,-500.0,0.00021917,3]
[349811336,1737443438592,-500.0,0.00021917,3]
[349811337,1737443438601,-500.0,0.00021917,3]
[349811338,1737443438610,-500.0,0.00021917,3]
[349811339,1737443438618,-500.0,0.00021917,3]
[349811340,1737443438627,-555.69,0.00021917,3]
[349811341,1737443438636,-500.0,0.00021917,3]
[349811342,1737443438645,-500.0,0.00021917,3]
[349811343,1737443438654,-625.81,0.00021917,3]
[349811344,1737443438664,-500.0,0.00021917,3]
[349811345,1737443438673,-500.0,0.00021917,3]
[349811346,1737443438683,-551.46697936,0.00021917,3]
[349811347,1737443438692,-500.0,0.00021917,3]
[349811348,1737443438701,-500.0,0.00021917,3]
[349811349,1737443438710,-500.0,0.00021917,3]
[349811350,1737443438719,-1716.24,0.00021917,3]
[349811351,1737443438728,-500.0,0.00021917,3]
[349811352,1737443438737,-750.57,0.00021917,2]
[349811353,1737443438746,-500.0,0.00021917,3]
[349811354,1737443438755,-500.0,0.00021917,3]
[349811355,1737443438765,-500.0,0.00021917,3]
[349811356,1737443438774,-500.0,0.00021917,3]
[349811357,1737443438783,-500.0,0.00021917,3]
[349811358,1737443438792,-500.0,0.00021917,3]
[349811359,1737443438803,-336.45716411,0.00021917,3]
[349811388,1737443440248,-1104.08081091,0.00021698,2]
[349811390,1737443440258,-163.54283589,0.00021917,3]
[349811392,1737443440267,-500.0,0.00021917,3]
[349811394,1737443440276,-500.0,0.00021917,3]
[349811396,1737443440285,-500.0,0.00021917,3]
[349811398,1737443440294,-475.62660736,0.00021917,3]
[349811401,1737443440377,-24.37339264,0.00021917,3]
[349811402,1737443440386,-821.40997234,0.00021917,3]
[349811415,1737443443221,165.316435,0.00013973,2]
[349811416,1737443443318,-1974.55002766,0.00021917,3]
[349811417,1737443443327,-392.92826734,0.00021917,3]
[349811439,1737443446147,-107.07173266,0.00021917,3]
[349811441,1737443446157,-7628.43,0.00021917,3]
[349811443,1737443446167,-2185.14,0.00021917,3]
[349811445,1737443446177,-500.0,0.00021917,3]
[349811447,1737443446187,-17561.75,0.00021917,3]
[349811449,1737443446197,-518.98,0.00021917,3]
[349811451,1737443446206,-1203.54,0.00021917,3]
[349811452,1737443446215,-500.0,0.00021917,3]
[349811454,1737443446224,-500.0,0.00021917,3]
[349811456,1737443446234,-585.1,0.00021917,3]
[349811458,1737443446243,-500.0,0.00021917,3]
[349811459,1737443446252,-500.0,0.00021917,3]
[349811460,1737443446262,-998.86,0.00021917,3]
[349811461,1737443446271,-993.44,0.00021917,3]
[349811462,1737443446281,-500.0,0.00021917,3]
[349811463,1737443446290,-500.0,0.00021917,3]
[349811464,1737443446300,-500.0,0.00021917,3]
[349811465,1737443446312,-500.0,0.00021917,3]
[349811466,1737443446322,-911.05,0.00021917,3]
[349811467,1737443446331,-500.0,0.00021917,3]
[349811468,1737443446340,-500.0,0.00021917,3]
[349811469,1737443446349,-927.05,0.00021917,3]
[349811470,1737443446359,-1854.15,0.00021917,3]
[349811471,1737443446369,-511.70919899,0.00021917,3]
[349811472,1737443446378,-500.0,0.00021917,3]
[349811473,1737443446387,-500.0,0.00021917,3]
[349811474,1737443446398,-603.38,0.00021917,3]
[349811475,1737443446407,-986.08,0.00021917,3]
[349811476,1737443446416,-500.0,0.00021917,3]
[349811477,1737443446426,-590.48,0.00021917,3]
[349811478,1737443446435,-2599.97,0.00021917,3]
[349811479,1737443446444,-500.0,0.00021917,3]
[349811480,1737443446454,-500.0,0.00021917,3]
[349811481,1737443446464,-4134.6,0.00021917,3]
[349811482,1737443446474,-4950.36,0.00021917,3]
[349811483,1737443446485,-569.55,0.00021917,3]
[349811484,1737443446493,-2770.79,0.00021917,3]
[349811485,1737443446643,-500.0,0.00021917,3]
[349811486,1737443446654,-10397.11,0.00021917,3]
[349811487,1737443446663,-2056.12,0.00021917,3]
[349811488,1737443446673,-931.88,0.00021917,3]
[349811489,1737443446683,-500.0,0.00021917,3]
[349811490,1737443446693,-500.0,0.00021917,3]
[349811491,1737443446703,-500.0,0.00021917,3]
[349811492,1737443446712,-500.0,0.00021917,3]
[349811493,1737443446722,-500.0,0.00021917,3]
[349811494,1737443446731,-571.03,0.00021917,3]
[349811495,1737443446741,-1172.69,0.00021917,3]
[349811496,1737443446750,-1413.57,0.00021917,3]
[349811497,1737443446759,-500.0,0.00021917,3]
[349811498,1737443446769,-1063.17,0.00021917,3]
[349811499,1737443446779,-1209.59,0.00021917,3]
[349811500,1737443446788,-500.0,0.00021917,3]
[349811501,1737443446798,-840.93,0.00021917,3]
[349811502,1737443446809,-500.0,0.00021917,3]
[349811503,1737443446818,-500.0,0.00021917,3]
[349811504,1737443446827,-500.0,0.00021917,3]
[349811505,1737443446837,-500.0,0.00021917,3]
[349811506,1737443446846,-2209.77,0.00021917,3]
[349811507,1737443446859,-500.0,0.00021917,3]
[349811508,1737443446869,-500.0,0.00021917,3]
[349811509,1737443446878,-500.0,0.00021917,3]
[349811510,1737443446888,-500.0,0.00021917,3]
[349811511,1737443446898,-500.0,0.00021917,3]
[349811512,1737443446907,-29177.56,0.00021917,3]
[349811513,1737443446917,-2066.23,0.00021917,3]
[349811514,1737443446929,-500.0,0.00021917,3]
[349811515,1737443446939,-500.0,0.00021917,3]
[349811516,1737443446949,-500.0,0.00021917,3]
[349811517,1737443446959,-1459.23,0.00021917,3]
[349811518,1737443446969,-1282.02,0.00021917,3]
[349811519,1737443446979,-500.0,0.00021917,3]
[349811520,1737443446989,-206.11753599,0.00021917,3]
[349811521,1737443446998,-779.98,0.00021917,3]
[349811522,1737443447008,-868.88,0.00021917,3]
[349811523,1737443447018,-500.0,0.00021917,3]
[349811524,1737443447027,-500.0,0.00021917,3]
[349811525,1737443447037,-2969.88,0.00021917,3]
[349811526,1737443447047,-928.24,0.00021917,3]
[349811527,1737443447058,-1151.37,0.00021917,3]
[349811528,1737443447067,-500.0,0.00021917,3]
[349811529,1737443447077,-5080.11,0.00021917,3]
[349811530,1737443447087,-500.0,0.00021917,3]
[349811531,1737443447097,-500.0,0.00021917,3]
[349811532,1737443447108,-153.0,0.00021994,2]
[349811533,1737443447119,-153.0,0.00021994,2]
[349811534,1737443447128,-153.0,0.00021994,2]
[349811535,1737443447138,-153.0,0.00021994,2]
[349811536,1737443447148,-153.0,0.00021994,2]
[349811537,1737443447158,-153.0,0.00021994,2]
[349811538,1737443447169,-153.0,0.00021994,2]
[349811539,1737443447178,-153.0,0.00021994,2]
[349811540,1737443447187,-159.28,0.00021994,2]
[349811541,1737443447197,-820.76800047,0.00022,12]
[349811542,1737443447207,-452.42141593,0.00022003,3]
[349811543,1737443447217,-354.0,0.0002203,8]
[349811544,1737443447226,-500.0,0.00022053,2]
[349811545,1737443447236,-500.0,0.00022053,2]
[349811546,1737443447246,-500.0,0.00022053,2]
[349811547,1737443447255,-500.0,0.00022053,2]
[349811548,1737443447265,-500.0,0.00022053,2]
[349811549,1737443447275,-500.0,0.00022053,2]
[349811550,1737443447284,-212.62383697,0.00022053,2]
[349811551,1737443447294,-500.0,0.00022053,2]
[349811552,1737443447305,-500.0,0.00022053,2]
[349811553,1737443447316,-500.0,0.00022053,2]
[349811554,1737443447326,-500.0,0.00022053,2]
[349811555,1737443447335,-500.0,0.00022053,2]
[349811556,1737443447345,-500.0,0.00022053,2]
[349811557,1737443447354,-500.0,0.00022053,2]
[349811558,1737443447363,-500.0,0.00022053,2]
[349811559,1737443447373,-500.0,0.00022053,2]
[349811560,1737443447382,-500.0,0.00022053,2]
[349811561,1737443447391,-500.0,0.00022053,2]
[349811562,1737443447401,-500.0,0.00022053,2]
[349811563,1737443447411,-441.63900216,0.00022053,2]
[349811564,1737443447421,-316.77665509,0.00022053,2]
[349811565,1737443447430,-500.0,0.00022053,2]
[349811566,1737443447439,-500.0,0.00022053,2]
[349811567,1737443447448,-322.5,0.00022053,2]
[349811568,1737443447458,-500.0,0.00022053,2]
[349811569,1737443447466,-500.0,0.00022053,2]
[349811570,1737443447476,-500.0,0.00022053,2]
[349811571,1737443447486,-586.04244786,0.00022053,2]
[349811572,1737443447495,-446.20342246,0.00022053,2]
[349811573,1737443447504,-500.0,0.00022053,2]
[349811574,1737443447514,-500.0,0.00022053,2]
[349811575,1737443447523,-500.0,0.00022053,2]
[349811576,1737443447533,-500.0,0.00022053,2]
[349811577,1737443447543,-500.0,0.00022053,2]
[349811578,1737443447553,-500.0,0.00022053,2]
[349811579,1737443447563,-384.14,0.00022053,2]
[349811580,1737443447572,-500.0,0.00022053,2]
[349811581,1737443447581,-500.0,0.00022053,2]
[349811582,1737443447591,-387.48573739,0.00022053,2]
[349811583,1737443447601,-304.4927486,0.00022053,2]
[349811584,1737443447610,-362.6694314,0.00022053,2]
[349811585,1737443447619,-500.0,0.00022053,2]
[349811586,1737443447629,-500.0,0.00022053,2]
[349811587,1737443447638,-225.0,0.00022053,2]
[349811588,1737443447649,-500.0,0.00022053,2]
[349811589,1737443447659,-550.01191399,0.00022053,2]
[349811590,1737443447668,-417.625,0.00022053,2]
[349811591,1737443447677,-638.14453983,0.00022053,2]
[349811592,1737443447686,-500.0,0.00022053,2]
[349811593,1737443447696,-500.0,0.00022053,2]
[349811594,1737443447706,-500.0,0.00022053,2]
[349811595,1737443447716,-500.0,0.00022053,2]
[349811596,1737443447725,-500.0,0.00022053,2]
[349811597,1737443447734,-500.0,0.00022053,2]
[349811598,1737443447743,-500.0,0.00022053,2]
[349811599,1737443447753,-500.0,0.00022053,2]
[349811600,1737443447762,-500.0,0.00022053,2]
[349811601,1737443447772,-500.0,0.00022053,2]
[349811602,1737443447781,-500.0,0.00022053,2]
[349811603,1737443447790,-500.0,0.00022053,2]
[349811604,1737443447799,-500.0,0.00022053,2]
[349811605,1737443447810,-351.25511655,0.00022053,2]
[349811606,1737443447820,-500.0,0.00022053,2]
[349811607,1737443447830,-500.0,0.00022053,2]
[349811608,1737443447840,-300.0,0.00022053,2]
[349811609,1737443447851,-500.0,0.00022053,2]
[349811610,1737443447864,-544.77076218,0.00022053,2]
[349811611,1737443447874,-500.0,0.00022053,2]
[349811612,1737443447883,-500.0,0.00022054,3]
[349811613,1737443447892,-500.0,0.00022054,3]
[349811614,1737443447903,-500.0,0.00022054,3]
[349811615,1737443447913,-500.0,0.00022054,3]
[349811616,1737443447923,-500.0,0.00022054,3]
[349811617,1737443447932,-500.0,0.00022054,3]
[349811618,1737443447943,-568.8,0.00022054,3]
[349811619,1737443447953,-500.0,0.00022054,3]
[349811620,1737443447963,-500.0,0.00022054,3]
[349811621,1737443447973,-500.0,0.00022054,3]
[349811622,1737443447983,-500.0,0.00022054,3]
[349811623,1737443447994,-500.0,0.00022054,3]
[349811624,1737443448005,-500.0,0.00022054,3]
[349811625,1737443448015,-500.0,0.00022054,3]
[349811626,1737443448026,-18.42066231,0.00022054,3]
[349811633,1737444486601,164.873358,0.00013973,2]
[349811646,1737444516121,237.66196096,0.0001,7]
[349811738,1737444632614,-300.0,0.00015681,2]
[349811740,1737444632624,-300.0,0.00015839,2]
[349811742,1737444632633,-300.0,0.00015999,2]
[349811744,1737444632642,-1742.1866768,0.00016,2]
[349811746,1737444632652,-3523.68191225,0.00016,2]
[349811748,1737444632661,-420.0,0.00017492,2]
[349811750,1737444632670,-1120.6347311,0.000176,2]
[349811752,1737444632680,-152.32621309,0.000189,2]
[349811754,1737444632691,-563.67840536,0.00019065,2]
[349811756,1737444632700,-587.0,0.00019125,2]
[349811758,1737444632710,-260.22325,0.00019436,2]
[349811760,1737444632720,-1161.19733149,0.00020701,2]
[349811763,1737444632739,-6953.47883191,0.00020701,2]
[349811765,1737444632749,-823.0,0.0002091,2]
[349811767,1737444632758,-702.02412279,0.00021,2]
[349811769,1737444632768,-352.02,0.0002108,2]
[349811771,1737444632777,-398.8765751,0.00021456,2]
[349811773,1737444632787,-164.873358,0.00021661,2]
[349811775,1737444632796,-668.88,0.000219,2]
[349811777,1737444632805,-436.22349692,0.000219,3]
[349811779,1737444632814,-351.56,0.00021907,3]
[349811781,1737444632827,-199.46668849,0.00021914,2]
[349812105,1737444638440,-623.75307328,0.00021914,2]
[349812107,1737444638449,-154.42,0.00021917,2]
[349812109,1737444638459,-221.23672356,0.00021917,3]
[349812112,1737444638479,-278.76327644,0.00021917,3]
[349812115,1737444638489,-500.0,0.00021917,3]
[349812117,1737444638498,-371.83915669,0.00021917,3]
[349812119,1737444638511,-427.38084331,0.00021917,3]
[349812121,1737444638521,-500.0,0.00021917,3]
[349812123,1737444638530,-171.7505112,0.00021917,3]
[349812125,1737444638541,-293.33861973,0.00021917,3]
[349812220,1737444643328,-623.75307328,0.00021695,2]
[349812221,1737444643339,-34.91086907,0.00021917,3]
[349812222,1737444643350,-163.943,0.00021917,2]
[349812223,1737444643360,-535.40542,0.00021917,3]
[349812224,1737444643369,-500.0,0.00021917,3]
[349812225,1737444643379,-500.0,0.00021917,3]
[349812226,1737444643389,-500.0,0.00021917,3]
[349812227,1737444643399,-500.0,0.00021917,3]
[349812228,1737444643408,-500.0,0.00021917,3]
[349812229,1737444643418,-500.0,0.00021917,3]
[349812230,1737444643428,-824.58,0.00021917,3]
[349812231,1737444643438,-1644.73,0.00021917,3]
[349812232,1737444643447,-500.0,0.00021917,3]
[349812233,1737444643456,-1675.98,0.00021917,3]
[349812234,1737444643466,-500.0,0.00021917,3]
[349812235,1737444643475,-345.78336498,0.00021917,3]
[349812236,1737444643484,-500.0,0.00021917,3]
[349812237,1737444643493,-500.0,0.00021917,3]
[349812239,1737444643503,-500.0,0.00021917,3]
[349812241,1737444643513,-802.72,0.00021917,3]
[349812243,1737444643523,-500.0,0.00021917,3]
[349812244,1737444643532,-500.0,0.00021917,3]
[349812245,1737444643542,-575.79,0.00021917,3]
[349812246,1737444643552,-500.0,0.00021917,3]
[349812247,1737444643561,-500.0,0.00021917,3]
[349812248,1737444643571,-500.0,0.00021917,3]
[349812249,1737444643581,-598.32,0.00021917,3]
[349812250,1737444643590,-500.0,0.00021917,3]
[349812251,1737444643600,-500.0,0.00021917,3]
[349812252,1737444643609,-82.79860291,0.00021917,3]
[349812263,1737444646318,-328.934324,0.00021917,3]
[349812268,1737445615705,165.716448,0.00013973,2]
[349812330,1737445832605,-719.29,0.00019042,2]
[349812332,1737445832614,-719.29,0.00019234,2]
[349812334,1737445832624,-200.39718917,0.00020776,2]
[349812339,1737445832660,-59.82606083,0.00020776,2]
[349812341,1737445832670,-337.496,0.0002095,2]
[349812343,1737445832679,-601.99,0.000219,2]
[349812345,1737445832688,-421.68271367,0.000219,3]
[349812347,1737445832697,-300.0,0.00021916,2]
[349812349,1737445832706,-163.94360155,0.00021917,2]
[349812351,1737445832716,-5397.02605442,0.00021917,5]
[349812353,1737445832725,-859.31086683,0.00021917,5]
[349812355,1737445832734,-500.0,0.00021917,3]
[349812357,1737445832743,-500.0,0.00021917,3]
[349812359,1737445832753,-1597.03,0.00021917,3]
[349812361,1737445832762,-500.0,0.00021917,3]
[349812363,1737445832771,-500.0,0.00021917,3]
[349812365,1737445832780,-500.0,0.00021917,3]
[349812367,1737445832790,-500.0,0.00021917,3]
[349812369,1737445832799,-500.0,0.00021917,3]
[349812371,1737445832808,-500.0,0.00021917,3]
[349812373,1737445832818,-500.0,0.00021917,3]
[349812375,1737445832827,-500.0,0.00021917,3]
[349812377,1737445832836,-500.0,0.00021917,3]
[349812379,1737445832848,-500.0,0.00021917,3]
[349812381,1737445832857,-500.0,0.00021917,3]
[349812383,1737445832866,-500.0,0.00021917,3]
[349812385,1737445832876,-500.0,0.00021917,3]
[349812387,1737445832886,-500.0,0.00021917,3]
[349812389,1737445832895,-584.28263761,0.00021917,3]
[349812391,1737445832904,-500.0,0.00021917,3]
[349812393,1737445832913,-500.0,0.00021917,3]
[349812396,1737445832923,-500.0,0.00021917,3]
[349812398,1737445832932,-500.0,0.00021917,3]
[349812400,1737445832943,-500.0,0.00021917,3]
[349812402,1737445832953,-568.07,0.00021917,3]
[349812404,1737445832963,-864.16,0.00021917,3]
[349812406,1737445832972,-500.0,0.00021917,3]
[349812408,1737445832982,-500.0,0.00021917,3]
[349812410,1737445832997,-500.0,0.00021917,3]
[349812412,1737445833007,-932.18,0.00021917,3]
[349812414,1737445833016,-500.0,0.00021917,3]
[349812417,1737445833026,-500.0,0.00021917,3]
[349812419,1737445833036,-500.0,0.00021917,3]
[349812421,1737445833046,-790.22,0.00021917,3]
[349812423,1737445833056,-500.0,0.00021917,3]
[349812425,1737445833066,-500.0,0.00021917,3]
[349812427,1737445833076,-500.0,0.00021917,3]
[349812429,1737445833085,-500.0,0.00021917,3]
[349812431,1737445833097,-1606.15,0.00021917,3]
[349812433,1737445833106,-500.0,0.00021917,3]
[349812435,1737445833116,-500.0,0.00021917,3]
[349812437,1737445833126,-500.0,0.00021917,3]
[349812439,1737445833136,-500.0,0.00021917,3]
[349812441,1737445833146,-500.0,0.00021917,3]
[349812443,1737445833156,-500.0,0.00021917,3]
[349812445,1737445833166,-500.0,0.00021917,3]
[349812447,1737445833175,-500.0,0.00021917,3]
[349812449,1737445833185,-500.0,0.00021917,3]
[349812451,1737445833195,-790.11,0.00021917,3]
[349812453,1737445833204,-500.0,0.00021917,3]
[349812455,1737445833214,-572.64,0.00021917,3]
[349812457,1737445833224,-500.0,0.00021917,3]
[349812460,1737445833234,-594.22,0.00021917,3]
[349812462,1737445833243,-500.0,0.00021917,3]
[349812477,1737445833417,-500.0,0.00021917,3]
[349812480,1737445833428,-500.0,0.00021917,3]
[349812482,1737445833438,-500.0,0.00021917,3]
[349812484,1737445833448,-500.0,0.00021917,3]
[349812486,1737445833457,-500.0,0.00021917,3]
[349812488,1737445833467,-500.0,0.00021917,3]
[349812490,1737445833477,-500.0,0.00021917,3]
[349812492,1737445833486,-500.0,0.00021917,3]
[349812493,1737445833496,-500.0,0.00021917,3]
[349812494,1737445833506,-500.0,0.00021917,3]
[349812495,1737445833516,-553.37,0.00021917,3]
[349812496,1737445833525,-500.0,0.00021917,3]
[349812497,1737445833535,-500.0,0.00021917,3]
[349812498,1737445833546,-500.0,0.00021917,3]
[349812499,1737445833555,-620.57,0.00021917,3]
[349812500,1737445833565,-542.23,0.00021917,3]
[349812501,1737445833575,-500.0,0.00021917,3]
[349812502,1737445833585,-500.0,0.00021917,3]
[349812503,1737445833598,-151.0,0.00021917,2]
[349812504,1737445833608,-500.0,0.00021917,3]
[349812505,1737445833618,-500.0,0.00021917,3]
[349812506,1737445833628,-500.0,0.00021917,3]
[349812507,1737445833639,-500.0,0.00021917,3]
[349812508,1737445833649,-500.0,0.00021917,3]
[349812509,1737445833659,-500.0,0.00021917,3]
[349812511,1737445833670,-500.0,0.00021917,3]
[349812513,1737445833680,-500.0,0.00021917,3]
[349812515,1737445833691,-500.0,0.00021917,3]
[349812517,1737445833700,-500.0,0.00021917,3]
[349812519,1737445833710,-500.0,0.00021917,3]
[349812521,1737445833721,-719.29,0.00021917,2]
[349812523,1737445833731,-500.0,0.00021917,3]
[349812526,1737445833741,-500.0,0.00021917,3]
[349812528,1737445833751,-2046.88,0.00021917,3]
[349812530,1737445833761,-500.0,0.00021917,3]
[349812532,1737445833770,-500.0,0.00021917,3]
[349812534,1737445833780,-500.0,0.00021917,3]
[349812536,1737445833789,-550.1333891,0.00021917,3]
[349812538,1737445833799,-1291.1,0.00021917,3]
[349812540,1737445833809,-500.0,0.00021917,3]
[349812542,1737445833818,-500.0,0.00021917,3]
[349812544,1737445833827,-500.0,0.00021917,3]
[349812546,1737445833837,-500.0,0.00021917,3]
[349812548,1737445833847,-500.0,0.00021917,3]
[349812550,1737445833857,-500.0,0.00021917,3]
[349812552,1737445833866,-730.6,0.00021917,3]
[349812554,1737445833875,-500.0,0.00021917,3]
[349812556,1737445833884,-585.39216353,0.00021917,3]
[349812558,1737445833893,-151.0,0.00021917,2]
[349812560,1737445833903,-177.934324,0.00021917,2]
[349812562,1737445833912,-1165.9,0.00021917,3]
[349812564,1737445833921,-500.0,0.00021917,3]
[349812566,1737445833931,-611.5,0.00021917,3]
[349812568,1737445833940,-765.92,0.00021917,3]
[349812570,1737445833949,-500.0,0.00021917,3]
[349812572,1737445833959,-5055.24,0.00021917,3]
[349812574,1737445833969,-500.0,0.00021917,3]
[349812576,1737445833979,-500.0,0.00021917,3]
[349812578,1737445833988,-7533.42,0.00021917,3]
[349812580,1737445833998,-500.0,0.00021917,3]
[349812582,1737445834007,-17357.03,0.00021917,3]
[349812584,1737445834016,-500.0,0.00021917,3]
[349812586,1737445834025,-500.0,0.00021917,3]
[349812588,1737445834035,-500.0,0.00021917,3]
[349812590,1737445834044,-581.55,0.00021917,3]
[349812592,1737445834053,-532.93,0.00021917,3]
[349812594,1737445834063,-500.0,0.00021917,3]
[349812596,1737445834072,-500.0,0.00021917,3]
[349812598,1737445834081,-500.0,0.00021917,3]
[349812600,1737445834093,-500.0,0.00021917,3]
[349812602,1737445834103,-993.71,0.00021917,3]
[349812604,1737445834112,-2783.63,0.00021917,3]
[349812606,1737445834122,-527.51663256,0.00021917,3]
[349812608,1737445834131,-2198.26,0.00021917,3]
[349812610,1737445834140,-500.0,0.00021917,3]
[349812612,1737445834149,-500.0,0.00021917,3]
[349812614,1737445834159,-1215.89,0.00021917,3]
[349812616,1737445834169,-500.0,0.00021917,3]
[349812618,1737445834179,-500.0,0.00021917,3]
[349812620,1737445834188,-599.03,0.00021917,3]
[349812622,1737445834198,-931.18,0.00021917,3]
[349812624,1737445834207,-500.0,0.00021917,3]
[349812626,1737445834217,-353.97066095,0.00021917,3]
[349812628,1737445834226,-2780.34,0.00021917,3]
[349812630,1737445834236,-151.0,0.00021917,2]
[349812632,1737445834246,-500.0,0.00021917,3]
[349812634,1737445834255,-1019.74,0.00021917,3]
[349812636,1737445834264,-500.0,0.00021917,3]
[349812638,1737445834273,-599.08,0.00021917,3]
[349812640,1737445834282,-500.0,0.00021917,3]
[349812642,1737445834291,-500.0,0.00021917,3]
[349812644,1737445834300,-500.0,0.00021917,3]
[349812646,1737445834309,-500.0,0.00021917,3]
[349812648,1737445834318,-500.0,0.00021917,3]
[349812650,1737445834328,-1165.5,0.00021917,3]
[349812652,1737445834337,-914.76,0.00021917,3]
[349812654,1737445834347,-500.0,0.00021917,3]
[349812656,1737445834356,-500.0,0.00021917,3]
[349812658,1737445834366,-283.25255811,0.00021917,3]
[349812660,1737445834376,-994.45,0.00021917,3]
[349812662,1737445834385,-500.0,0.00021917,3]
[349812663,1737445834395,-1824.65,0.00021917,3]
[349812666,1737445834406,-500.0,0.00021917,3]
[349812668,1737445834415,-10120.31,0.00021917,3]
[349812670,1737445834425,-2012.12,0.00021917,3]
[349812672,1737445834435,-500.0,0.00021917,3]
[349812674,1737445834445,-500.0,0.00021917,3]
[349812676,1737445834455,-500.0,0.00021917,3]
[349812678,1737445834464,-987.54,0.00021917,3]
[349812680,1737445834474,-572.12,0.00021917,3]
[349812682,1737445834484,-500.0,0.00021917,3]
[349812684,1737445834493,-2599.66,0.00021917,3]
[349812686,1737445834503,-151.0,0.00021917,2]
[349812688,1737445834512,-1039.7,0.00021917,3]
[349812690,1737445834521,-500.0,0.00021917,3]
[349812692,1737445834530,-500.0,0.00021917,3]
[349812694,1737445834540,-500.0,0.00021917,3]
[349812696,1737445834549,-4806.59,0.00021917,3]
[349812698,1737445834559,-500.0,0.00021917,3]
[349812700,1737445834567,-4003.99,0.00021917,3]
[349812702,1737445834577,-1354.67,0.00021917,3]
[349812704,1737445834587,-826.73,0.00021917,3]
[349812705,1737445834600,-500.0,0.00021917,3]
[349812708,1737445834610,-500.0,0.00021917,3]
[349812710,1737445834619,-500.0,0.00021917,3]
[349812712,1737445834629,-28419.77,0.00021917,3]
[349812714,1737445834638,-500.0,0.00021917,3]
[349812716,1737445834648,-500.0,0.00021917,3]
[349812718,1737445834657,-500.0,0.00021917,3]
[349812720,1737445834667,-500.0,0.00021917,3]
[349812722,1737445834677,-238.34794175,0.00021917,3]
[349812724,1737445834686,-500.0,0.00021917,3]
[349812726,1737445834695,-1440.09,0.00021917,3]
[349812728,1737445834705,-1221.69,0.00021917,3]